bitfinex/quotes_BTCUSD_20220202
["timestamp","ask_amount","ask_price","bid_price","bid_amount"]
[1643807416381,0.55739775,38732.0,38731.0,0.129117]
[1643807416583,0.62196675,38732.0,38728.0,0.129129]
[1643807416783,0.448048,38731.0,38728.0,0.129129]
[1643807416983,0.348048,38730.0,38728.0,0.32980268]
[1643807417381,0.1,38731.0,38728.0,0.32980268]
[1643807417588,0.1,38731.0,38728.0,0.129129]
[1643807417984,0.064566,38734.0,38729.0,0.064566]
[1643807418184,0.348048,38733.0,38729.0,0.064566]
[1643807418382,0.15,38732.0,38729.0,0.064566]
[1643807418584,0.348048,38731.0,38729.0,0.064566]
[1643807418984,0.348048,38731.0,38730.0,0.064564]
[1643807419220,0.00013442,38733.0,38730.0,0.064564]
[1643807419418,0.00013442,38733.0,38732.0,0.24110531]
[1643807419818,0.00013442,38733.0,38732.0,0.26610531]
[1643807420820,0.05013442,38733.0,38732.0,0.26610531]
[1643807421019,0.00013442,38733.0,38732.0,0.26610531]
[1643807421223,0.00013442,38733.0,38732.0,0.45251005]
[1643807421620,0.00013442,38733.0,38732.0,0.42751005]
[1643807421821,0.00013442,38733.0,38732.0,0.42750705]
[1643807422220,0.00013442,38733.0,38732.0,0.41564005]
[1643807423265,0.00013442,38733.0,38732.0,0.46564005]
[1643807423466,0.00013442,38733.0,38732.0,0.77750705]
[1643807423668,0.00013442,38733.0,38732.0,0.89374505]
[1643807424770,0.00013442,38733.0,38732.0,0.58187805]
[1643807426269,0.00013442,38733.0,38732.0,0.40734331]
[1643807426717,0.00013442,38733.0,38732.0,0.57868354]
[1643807427719,0.00013442,38733.0,38732.0,0.40734331]
[1643807429120,0.00013442,38733.0,38732.0,0.57699475]
[1643807430564,0.00013442,38733.0,38732.0,0.57710363]
[1643807431362,0.00013442,38733.0,38732.0,0.40745219]
[1643807432463,0.00013442,38733.0,38732.0,0.70745219]
[1643807432664,0.00013442,38733.0,38732.0,0.40745219]
[1643807433067,0.00013442,38733.0,38732.0,0.34291419]
[1643807437728,0.00013442,38733.0,38732.0,0.10180888]
[1643807437983,0.00013442,38733.0,38732.0,0.00010888]
[1643807438184,0.00013442,38733.0,38731.0,0.0655416]
[1643807438185,0.21174109,38733.0,38731.0,0.0655416]
[1643807438680,0.21174109,38733.0,38731.0,0.06466064]
[1643807439082,0.21174109,38733.0,38731.0,0.06467006]
[1643807439483,0.21174109,38733.0,38731.0,0.00010888]
[1643807439681,0.21174109,38733.0,38730.0,0.06626321]
[1643807439882,0.05,38732.0,38730.0,0.00010888]
[1643807440085,0.05,38732.0,38730.0,0.00098985]
[1643807440086,0.19951785,38731.0,38730.0,0.00098985]
[1643807440283,0.4565038,38731.0,38730.0,0.00088097]
[1643807440782,0.45621088,38731.0,38730.0,0.00088097]
[1643807440986,0.45621088,38731.0,38730.0,0.00010888]
[1643807441622,0.05,38732.0,38729.0,0.3092286]
[1643807441821,0.19370055,38731.0,38729.0,0.2592286]
[1643807442021,0.05,38732.0,38729.0,0.2592286]
[1643807442221,0.05,38732.0,38729.0,0.2583476]
[1643807442424,0.2837604,38732.0,38729.0,0.2583476]
[1643807442821,0.19456096,38731.0,38729.0,0.2583476]
[1643807443021,0.19382868,38731.0,38729.0,0.2583476]
[1643807443221,0.19321956,38731.0,38729.0,0.2583476]
[1643807443422,0.19309223,38731.0,38729.0,0.2583476]
[1643807443624,0.00013454,38731.0,38729.0,0.2583476]
[1643807444223,0.00013454,38731.0,38729.0,0.3083476]
[1643807444722,0.00013454,38731.0,38729.0,0.2583476]
[1643807445771,0.00013454,38731.0,38729.0,0.3083476]
[1643807446773,0.00013454,38731.0,38729.0,0.2583476]
[1643807447773,0.00013454,38731.0,38729.0,0.3083476]
[1643807449119,0.19265221,38731.0,38729.0,0.3083476]
[1643807449320,0.19288725,38731.0,38729.0,0.3083476]
[1643807449520,0.00013454,38731.0,38729.0,0.3083476]
[1643807449719,0.19415135,38731.0,38729.0,0.3083476]
[1643807450220,0.19415135,38731.0,38729.0,0.2583476]
[1643807451021,0.19415135,38731.0,38729.0,0.19378388]
[1643807451225,0.348048,38730.0,38729.0,0.19378388]
[1643807451422,0.348048,38730.0,38729.0,0.12921788]
[1643807451622,0.19415135,38731.0,38729.0,0.12921788]
[1643807451623,0.00013454,38731.0,38729.0,0.12921788]
[1643807452024,0.00013454,38731.0,38729.0,0.40513788]
[1643807452226,0.00013454,38731.0,38729.0,0.45513788]
[1643807452423,0.00013454,38731.0,38729.0,0.17921788]
[1643807452625,0.05,38730.0,38729.0,0.17921788]
[1643807453468,0.05,38730.0,38729.0,0.24377903]
[1643807453668,0.0501346,38730.0,38729.0,0.50538028]
[1643807453873,0.0001346,38730.0,38729.0,0.24377903]
[1643807454469,0.0501346,38730.0,38729.0,0.24377903]
[1643807454670,0.0501346,38730.0,38729.0,0.17921788]
[1643807455070,0.0501346,38730.0,38729.0,0.05010888]
[1643807455271,0.25175925,38730.0,38729.0,0.00010888]
[1643807455472,0.25124217,38730.0,38728.0,0.30835788]
[1643807455770,0.20700083,38729.0,38728.0,0.30994695]
[1643807455970,0.19759222,38729.0,38728.0,0.30994695]
[1643807456169,0.0501346,38730.0,38728.0,0.30994695]
[1643807456618,0.0501346,38730.0,38728.0,0.30835788]
[1643807457020,0.12083687,38729.0,38728.0,0.30835788]
[1643807457218,0.71888487,38729.0,38728.0,0.17923788]
[1643807457719,0.71888487,38729.0,38728.0,0.12923788]
[1643807457921,0.81888487,38729.0,38728.0,0.00010888]
[1643807458125,0.81888487,38729.0,38727.0,0.0661531]
[1643807458322,1.171533,38728.0,38727.0,0.0661531]
[1643807458721,1.24684027,38728.0,38727.0,0.0661531]
[1643807458923,1.071533,38728.0,38727.0,0.0661531]
[1643807459120,1.24684027,38728.0,38727.0,0.064564]
[1643807459523,1.24684027,38728.0,38727.0,0.06467288]
[1643807459723,1.34684027,38728.0,38727.0,0.06467288]
[1643807461168,1.34684027,38728.0,38726.0,0.00158912]
[1643807461169,0.764579,38727.0,38726.0,0.00158912]
[1643807461368,0.82995179,38726.0,38721.0,0.129155]
[1643807461573,0.05,38723.0,38721.0,0.129155]
[1643807461767,0.05,38723.0,38720.0,0.0011]
[1643807461768,0.348048,38722.0,38720.0,0.0011]
[1643807462170,0.26535273,38721.0,38720.0,0.0011]
[1643807462368,0.61340073,38721.0,38720.0,0.0011]
[1643807463074,0.96332293,38721.0,38717.0,0.0011]
[1643807463271,0.96332293,38721.0,38712.0,0.0022]
[1643807463272,0.05,38714.0,38712.0,0.0022]
[1643807463471,0.399748,38713.0,38712.0,0.0022]
[1643807463872,0.499748,38713.0,38712.0,0.0022]
[1643807464523,0.52674604,38713.0,38712.0,0.0001]
[1643807465722,0.91931034,38713.0,38712.0,0.0001]
[1643807465923,0.70205331,38713.0,38712.0,0.0001]
[1643807466925,0.52674604,38713.0,38712.0,0.0001]
[1643807467125,0.73204063,38713.0,38712.0,0.0001]
[1643807467325,0.9073479,38713.0,38712.0,0.0001]
[1643807468569,0.90748355,38713.0,38712.0,0.0001]
[1643807469571,0.00227493,38710.0,38708.0,0.0011]
[1643807469771,0.40032293,38710.0,38708.0,0.0011]
[1643807469973,0.59407371,38710.0,38708.0,0.0011]
[1643807470170,0.69407371,38710.0,38708.0,0.0011]
[1643807472424,0.69407371,38710.0,38708.0,0.00197552]
[1643807473222,0.50032293,38710.0,38708.0,0.00197552]
[1643807473421,0.50032293,38710.0,38708.0,0.0011]
[1643807473622,0.50045876,38710.0,38708.0,0.00268642]
[1643807474123,0.6453597,38710.0,38708.0,0.00268642]
[1643807474526,0.50045876,38710.0,38708.0,0.00268642]
[1643807474724,0.50045876,38710.0,38708.0,0.0011]
[1643807474923,0.50045876,38710.0,38708.0,0.00268642]
[1643807475870,0.50045876,38710.0,38708.0,0.0011]
[1643807476071,0.50045876,38710.0,38708.0,0.00268642]
[1643807476469,0.6442518,38710.0,38709.0,0.00120817]
[1643807476670,0.50045876,38710.0,38709.0,0.00120817]
[1643807476869,0.95045876,38710.0,38709.0,0.00120817]
[1643807477870,0.95045876,38710.0,38706.0,0.01690742]
[1643807477871,0.51910774,38708.0,38706.0,0.01690742]
[1643807478072,0.54991141,38707.0,38699.0,0.13556901]
[1643807478273,0.54991141,38707.0,38704.0,0.00010817]
[1643807478274,0.398048,38706.0,38704.0,0.00010817]
[1643807478470,1.05986804,38705.0,38704.0,0.00010817]
[1643807478671,1.33517531,38705.0,38704.0,0.00010817]
[1643807478872,1.53521531,38705.0,38701.0,0.06472117]
[1643807479120,0.82186939,38704.0,38701.0,0.06472117]
[1643807479322,0.64656212,38704.0,38701.0,0.06472117]
[1643807479522,0.64656212,38704.0,38702.0,0.00010817]
[1643807480323,1.18426485,38703.0,38701.0,0.06472517]
[1643807480522,0.94953762,38702.0,38701.0,0.06472517]
[1643807480723,0.72484489,38702.0,38701.0,0.06472517]
[1643807480923,0.54953762,38702.0,38701.0,0.06472517]
[1643807481325,0.68634762,38702.0,38701.0,0.00010817]
[1643807481524,0.68634762,38702.0,38700.0,0.4215846]
[1643807481722,1.10004359,38701.0,38700.0,0.4215846]
[1643807481923,1.10004359,38701.0,38700.0,0.42]
[1643807482123,0.82535086,38701.0,38700.0,0.42]
[1643807482327,0.65004359,38701.0,38700.0,0.42]
[1643807482724,0.65004359,38701.0,38700.0,0.47010817]
[1643807482970,0.84446724,38701.0,38700.0,0.47010817]
[1643807483169,0.64247165,38701.0,38700.0,0.42010817]
[1643807483371,0.95185283,38701.0,38700.0,0.42]
[1643807483570,0.74247165,38701.0,38700.0,0.42]
[1643807483770,0.93253133,38701.0,38700.0,0.42]
[1643807483969,0.93253133,38701.0,38700.0,0.42010817]
[1643807484170,1.1078386,38701.0,38700.0,0.42010817]
[1643807484372,0.93253133,38701.0,38700.0,0.42010817]
[1643807484573,1.1078386,38701.0,38700.0,0.42]
[1643807484772,0.93253133,38701.0,38700.0,0.42]
[1643807484977,1.1078386,38701.0,38700.0,0.42]
[1643807485172,0.93253133,38701.0,38700.0,0.42010817]
[1643807485772,0.93253133,38701.0,38700.0,0.42]
[1643807485973,0.93253133,38701.0,38700.0,0.28838805]
[1643807486473,0.93253133,38701.0,38700.0,0.28849622]
[1643807486718,0.83253133,38701.0,38700.0,0.33849622]
[1643807486918,0.348048,38701.0,38700.0,0.33838805]
[1643807487118,0.05011228,38702.0,38700.0,0.33838805]
[1643807487624,0.00013633,38702.0,38701.0,0.17412999]
[1643807487821,0.00013633,38702.0,38701.0,0.16878809]
[1643807488018,0.00013633,38702.0,38701.0,0.00010817]
[1643807488218,0.00013633,38702.0,38701.0,0.05180817]
[1643807488420,0.00013633,38702.0,38701.0,0.49103635]
[1643807488620,0.00013633,38702.0,38701.0,0.32379846]
[1643807488820,0.1,38708.0,38702.0,0.064602]
[1643807489020,0.1,38708.0,38702.0,0.06471017]
[1643807489321,0.03681,38706.0,38703.0,0.11618653]
[1643807489519,0.2351205,38705.0,38703.0,0.1162947]
[1643807490023,0.00227493,38710.0,38704.0,0.1017]
[1643807490229,0.00227493,38710.0,38705.0,0.064593]
[1643807490480,0.00227493,38710.0,38706.0,0.0517]
[1643807490879,0.00227493,38710.0,38707.0,0.30457816]
[1643807491077,0.00227493,38710.0,38708.0,0.1017]
[1643807491278,0.00227493,38710.0,38709.0,0.70892522]
[1643807491481,0.00227493,38710.0,38709.0,0.76062522]
[1643807492176,0.00227493,38710.0,38709.0,1.02667394]
[1643807492782,0.00227493,38710.0,38709.0,0.57667394]
[1643807493178,0.00227493,38710.0,38709.0,0.37967272]
[1643807493379,0.00227493,38710.0,38709.0,0.10180817]
[1643807493679,0.03908493,38710.0,38709.0,0.10180817]
[1643807493876,0.03908493,38710.0,38709.0,0.05180817]
[1643807494519,0.00227493,38710.0,38709.0,0.05180817]
[1643807495722,0.35227493,38710.0,38709.0,0.05180817]
[1643807495923,0.35227493,38710.0,38709.0,0.00010817]
[1643807496122,0.35227493,38710.0,38707.0,0.00010817]
[1643807496123,0.70032293,38710.0,38707.0,0.00010817]
[1643807496327,0.67556508,38709.0,38707.0,0.00010817]
[1643807496523,1.17562176,38708.0,38707.0,0.00010817]
[1643807496722,1.27562176,38708.0,38706.0,0.00158449]
[1643807496923,1.4228301,38707.0,38706.0,0.00158449]
[1643807497524,1.68802151,38707.0,38701.0,0.00010817]
[1643807497723,0.348048,38706.0,38705.0,0.00087069]
[1643807497979,0.57957609,38706.0,38705.0,0.00087069]
[1643807498176,0.67957609,38706.0,38705.0,0.00087069]
[1643807498774,0.67957609,38706.0,38701.0,0.00010817]
[1643807498973,0.1,38705.0,38704.0,0.00158557]
[1643807499374,0.5668743,38705.0,38704.0,0.00158557]
[1643807499577,0.9149223,38705.0,38704.0,0.00158557]
[1643807499974,0.9149223,38705.0,38701.0,0.00010817]
[1643807500173,0.348048,38704.0,38703.0,0.00158559]
[1643807500373,0.67343075,38704.0,38703.0,0.00158559]
[1643807500580,0.67367284,38704.0,38703.0,0.00158559]
[1643807500774,0.67385252,38704.0,38703.0,0.00158559]
[1643807501177,0.67385252,38704.0,38701.0,0.00010817]
[1643807501379,0.448048,38703.0,38702.0,0.00158562]
[1643807501621,0.71604288,38703.0,38702.0,0.00158562]
[1643807502420,0.71604288,38703.0,38701.0,0.00010817]
[1643807502619,0.54133381,38702.0,38701.0,0.00169381]
[1643807502819,0.64133381,38702.0,38701.0,0.00158564]
[1643807503223,0.448048,38702.0,38701.0,0.00158564]
[1643807503421,0.448048,38702.0,38701.0,0.00169381]
[1643807503621,0.64098645,38702.0,38701.0,0.00010817]
[1643807503822,0.63899564,38702.0,38701.0,0.00010817]
[1643807504023,0.448048,38702.0,38700.0,0.28977078]
[1643807504226,0.03681,38703.0,38700.0,0.28977078]
[1643807504227,0.1,38701.0,38700.0,0.28977078]
[1643807504722,0.1,38701.0,38700.0,0.28849622]
[1643807505375,0.22672517,38701.0,38700.0,0.28849622]
[1643807505571,0.43420633,38701.0,38700.0,0.28849622]
[1643807505774,0.22672517,38701.0,38700.0,0.28849622]
[1643807505971,0.32672517,38701.0,38700.0,0.28849622]
[1643807507173,0.22672517,38701.0,38700.0,0.28849622]
[1643807507373,0.67477317,38701.0,38700.0,0.28849622]
[1643807508172,0.87746951,38701.0,38700.0,0.28849622]
[1643807508573,0.87746951,38701.0,38700.0,0.28838805]
[1643807508772,0.87760591,38701.0,38700.0,0.28838805]
[1643807509219,0.87760591,38701.0,38700.0,0.28849622]
[1643807509819,0.87760591,38701.0,38700.0,0.28838805]
[1643807510419,0.87760591,38701.0,38700.0,0.28849622]
[1643807511024,0.87760591,38701.0,38700.0,0.28838805]
[1643807511620,0.87760591,38701.0,38700.0,0.28849622]
[1643807512223,0.87760591,38701.0,38700.0,0.28838805]
[1643807512879,0.87760591,38701.0,38700.0,0.28849622]
[1643807513275,0.67490957,38701.0,38700.0,0.28849622]
[1643807513476,0.67490957,38701.0,38700.0,0.28838805]
[1643807514074,0.67490957,38701.0,38700.0,0.28849622]
[1643807514677,0.32686157,38701.0,38700.0,0.28849622]
[1643807514877,0.22686157,38701.0,38700.0,0.28849622]
[1643807517219,0.22686157,38701.0,38700.0,0.28838511]
[1643807519321,0.67490957,38701.0,38700.0,0.28827694]
[1643807519921,0.67490957,38701.0,38700.0,0.28838511]
[1643807521770,0.67490957,38701.0,38700.0,0.28827694]
[1643807522373,0.86391797,38701.0,38700.0,0.28838511]
[1643807523073,0.86391797,38701.0,38700.0,0.28827694]
[1643807523372,0.87123231,38701.0,38700.0,0.28827694]
[1643807523572,0.87123231,38701.0,38700.0,0.28838511]
[1643807524920,0.67490957,38701.0,38700.0,0.28838511]
[1643807525122,0.86553121,38701.0,38700.0,0.28838511]
[1643807525321,0.86553121,38701.0,38700.0,0.28827694]
[1643807525924,0.86553121,38701.0,38700.0,0.28838511]
[1643807526523,0.67490957,38701.0,38700.0,0.28827694]
[1643807526924,0.86644612,38701.0,38700.0,0.28827694]
[1643807527123,0.86644612,38701.0,38700.0,0.28838511]
[1643807527525,0.67490957,38701.0,38700.0,0.28838511]
[1643807527724,0.67490957,38701.0,38700.0,0.28827694]
[1643807528172,0.88454643,38701.0,38700.0,0.28827694]
[1643807528473,1.13454643,38701.0,38700.0,0.28838511]
[1643807528670,0.75,38700.0,38699.0,0.00141905]
[1643807528871,0.03681,38694.0,38691.0,0.1134]
[1643807529072,0.62315985,38694.0,38693.0,0.00567706]
[1643807529471,0.27315985,38694.0,38693.0,0.00567706]
[1643807530175,0.27315985,38694.0,38692.0,0.06714752]
[1643807530377,0.3,38692.0,38688.0,1.20258899]
[1643807530673,0.03681,38690.0,38688.0,1.20258899]
[1643807531475,0.3,38692.0,38688.0,1.20258899]
[1643807531719,0.03681,38690.0,38688.0,1.20258899]
[1643807532522,0.1946678,38689.0,38688.0,1.20258899]
[1643807533121,0.03681,38690.0,38688.0,1.20258899]
[1643807533421,0.54190715,38689.0,38688.0,1.20258899]
[1643807533623,0.54190715,38689.0,38683.0,0.1201]
[1643807533624,0.35013715,38689.0,38683.0,0.1201]
[1643807533823,0.35013715,38689.0,38687.0,0.001585]
[1643807533824,0.1,38688.0,38687.0,0.001585]
[1643807534021,0.448048,38688.0,38687.0,0.001585]
[1643807534224,0.898048,38688.0,38687.0,0.001585]
[1643807534424,1.18768111,38688.0,38687.0,0.001585]
[1643807534829,1.25100111,38688.0,38679.0,0.129279]
[1643807535023,1.25100111,38688.0,38680.0,0.0063411]
[1643807535024,0.03681,38683.0,38680.0,0.0063411]
[1643807536080,0.03681,38683.0,38679.0,0.129279]
[1643807536280,0.03681,38683.0,38680.0,0.00158516]
[1643807536682,0.348048,38682.0,38680.0,0.00158516]
[1643807536881,0.448048,38682.0,38680.0,0.00158516]
[1643807537089,0.448048,38682.0,38660.0,0.25536011]
[1643807537090,0.75,38680.0,38660.0,0.25536011]
[1643807537286,0.064672,38676.0,38664.0,0.00010739]
[1643807537485,0.064672,38676.0,38652.0,0.0011]
[1643807537486,0.03681,38661.0,38652.0,0.0011]
[1643807537687,0.03681,38661.0,38653.0,0.00010725]
[1643807537884,0.03974,38669.0,38652.0,0.0011]
[1643807537885,0.03681,38660.0,38652.0,0.0011]
[1643807538083,0.3,38660.0,38652.0,0.0011]
[1643807538288,0.03681,38657.0,38652.0,0.0011]
[1643807538786,0.348048,38656.0,38654.0,0.0008573]
[1643807538983,0.03681,38657.0,38654.0,0.0008573]
[1643807539223,0.0517,38666.0,38656.0,0.30242586]
[1643807539427,0.17565751,38667.0,38657.0,0.19791518]
[1643807539629,0.17565751,38670.0,38664.0,0.23668874]
[1643807539824,0.03681,38677.0,38664.0,0.23668874]
[1643807540024,0.348048,38676.0,38665.0,0.19791518]
[1643807540222,0.03681,38673.0,38666.0,0.28867389]
[1643807540423,0.42047544,38678.0,38666.0,0.28867389]
[1643807540623,0.42047544,38678.0,38666.0,0.23867389]
[1643807540624,0.03681,38669.0,38666.0,0.23867389]
[1643807540826,0.03681,38672.0,38666.0,0.28867389]
[1643807541028,0.03681,38680.0,38670.0,0.00085695]
[1643807541226,0.27764712,38676.0,38671.0,0.0517]
[1643807541424,0.03681,38680.0,38674.0,0.23350883]
[1643807541626,0.348048,38679.0,38675.0,0.0517]
[1643807541823,0.348048,38680.0,38675.0,0.0517]
[1643807542226,0.00145473,38679.0,38675.0,0.0517]
[1643807542625,0.348048,38678.0,38675.0,0.0517]
[1643807542879,0.64393239,38676.0,38675.0,0.0517]
[1643807543074,1.02879039,38676.0,38674.0,0.42]
[1643807543272,0.698048,38675.0,38674.0,0.42]
[1643807543473,0.698048,38675.0,38672.0,0.00157447]
[1643807543771,0.348048,38674.0,38672.0,0.00157447]
[1643807543972,0.03681,38673.0,38672.0,0.00157447]
[1643807544172,1.034858,38673.0,38672.0,0.00157447]
[1643807544372,0.384858,38673.0,38670.0,0.01864318]
[1643807544572,0.348048,38672.0,38671.0,0.00157447]
[1643807545173,0.598048,38672.0,38671.0,0.00157447]
[1643807545574,0.598048,38672.0,38669.0,0.00010724]
[1643807545776,0.348048,38671.0,38670.0,0.00143261]
[1643807545972,0.03681,38673.0,38670.0,0.00143261]
[1643807545973,0.348048,38672.0,38670.0,0.00143261]
[1643807546822,0.348048,38672.0,38668.0,0.00010724]
[1643807547121,0.24635244,38675.0,38669.0,0.00143262]
[1643807547430,0.03681,38671.0,38669.0,0.00143262]
[1643807547623,0.00318695,38667.0,38665.0,0.00010724]
[1643807547823,0.00318695,38667.0,38663.0,0.01925619]
[1643807547824,0.03681,38664.0,38663.0,0.01925619]
[1643807548026,0.62886945,38664.0,38663.0,0.01925619]
[1643807548323,0.748048,38664.0,38663.0,0.00010724]
[1643807548522,0.748048,38664.0,38653.0,0.0031]
[1643807548523,0.748048,38664.0,38658.0,0.00010724]
[1643807548724,0.348048,38663.0,38658.0,0.00010724]
[1643807548923,0.03681,38660.0,38658.0,0.00010724]
[1643807549122,0.03681,38662.0,38655.0,0.00010724]
[1643807549324,0.03681,38662.0,38657.0,0.00145225]
[1643807549623,0.348048,38661.0,38657.0,0.00145225]
[1643807550026,0.348048,38661.0,38658.0,0.21115271]
[1643807550475,0.561593,38661.0,38658.0,0.00010724]
[1643807550775,0.348048,38660.0,38658.0,0.00155948]
[1643807551174,0.348048,38661.0,38658.0,0.00145224]
[1643807551574,0.348048,38661.0,38658.0,0.26596812]
[1643807551773,0.348048,38661.0,38658.0,0.26742036]
[1643807551974,0.348048,38661.0,38658.0,0.00145224]
[1643807552581,0.03681,38662.0,38658.0,0.00145224]
[1643807552776,0.03681,38662.0,38655.0,0.18052743]
[1643807552976,0.03681,38662.0,38658.0,0.27689733]
[1643807553676,8.373e-05,38659.0,38658.0,0.00144839]
[1643807554119,0.03681,38658.0,38657.0,0.00010727]
[1643807554319,0.45008373,38659.0,38657.0,0.0015557]
[1643807554520,0.45008373,38659.0,38657.0,0.00144843]
[1643807554924,1.3085934,38658.0,38657.0,0.00144843]
[1643807555126,1.5099834,38658.0,38657.0,0.00144843]
[1643807555321,1.5099834,38658.0,38655.0,0.00010727]
[1643807555322,0.03681,38656.0,38655.0,0.00010727]
[1643807555521,1.134858,38656.0,38655.0,0.00010727]
[1643807555721,1.134858,38656.0,38650.0,0.00579466]
[1643807555722,0.75,38655.0,38642.0,0.002]
[1643807555927,0.03681,38650.0,38642.0,0.002]
[1643807556123,0.5585934,38649.0,38648.0,0.0011]
[1643807556325,0.5585934,38649.0,38642.0,0.002]
[1643807556326,0.75,38648.0,38642.0,0.002]
[1643807556528,0.03681,38643.0,38642.0,0.002]
[1643807556725,0.03681,38637.0,38634.0,0.4199]
[1643807556925,0.03681,38637.0,38626.0,0.002]
[1643807556926,0.348048,38636.0,38626.0,0.002]
[1643807557125,0.23826048,38633.0,38626.0,0.002]
[1643807557327,1.05753256,38632.0,38626.0,0.0002]
[1643807557527,0.03681,38628.0,38626.0,0.0002]
[1643807557729,0.698048,38627.0,38626.0,0.0002]
[1643807557981,0.348048,38627.0,38626.0,0.0002]
[1643807558178,0.348048,38630.0,38626.0,0.0002]
[1643807558376,0.348048,38630.0,38627.0,0.01569114]
[1643807558575,0.384858,38630.0,38627.0,0.01569114]
[1643807558775,0.346948,38629.0,38626.0,0.0002]
[1643807558974,0.346948,38629.0,38627.0,0.00083716]
[1643807559377,0.63022944,38629.0,38627.0,0.00083716]
[1643807559577,0.648048,38628.0,38627.0,0.00083716]
[1643807559776,0.348048,38628.0,38627.0,0.00083716]
[1643807559982,0.348093,38629.0,38626.0,0.0002]
[1643807560176,0.348093,38630.0,38626.0,0.00176589]
[1643807560581,0.17575808,38631.0,38626.0,0.00176589]
[1643807560582,0.17575808,38631.0,38626.0,0.09598598]
[1643807560782,0.22664397,38637.0,38626.0,0.19598598]
[1643807560978,0.348093,38636.0,38627.0,0.21132848]
[1643807561376,0.17575808,38638.0,38630.0,0.0015658]
[1643807561620,0.348093,38637.0,38630.0,0.0015658]
[1643807561820,0.348093,38637.0,38627.0,0.26132848]
[1643807561821,0.0031316,38628.0,38627.0,0.26132848]
[1643807562021,0.0031316,38628.0,38627.0,0.05]
[1643807562621,0.0031316,38628.0,38626.0,0.0502]
[1643807562822,0.0031316,38628.0,38626.0,0.0002]
[1643807564125,0.0031316,38628.0,38627.0,0.08992815]
[1643807564328,0.0031316,38628.0,38627.0,0.42270678]
[1643807564527,0.0031316,38628.0,38627.0,0.25479415]
[1643807564728,0.0031316,38628.0,38627.0,0.24162815]
[1643807564930,0.0031316,38628.0,38627.0,0.84948635]
[1643807565127,0.0031316,38628.0,38627.0,0.49948635]
[1643807565380,0.0031316,38628.0,38627.0,0.1467]
[1643807569221,0.03681,38638.0,38627.0,0.1467]
[1643807569623,0.21032624,38637.0,38627.0,0.1467]
[1643807569823,0.22521165,38639.0,38628.0,0.00082597]
[1643807570126,0.21179175,38640.0,38633.0,0.23837152]
[1643807570322,0.348093,38639.0,38633.0,0.33837152]
[1643807570522,0.52385108,38640.0,38634.0,0.0517]
[1643807570728,0.348093,38639.0,38634.0,0.0517]
[1643807570930,0.348093,38639.0,38635.0,0.0517]
[1643807571524,0.17575808,38640.0,38638.0,0.09477741]
[1643807571726,0.17575808,38640.0,38639.0,0.0517]
[1643807571923,0.23433371,38641.0,38639.0,0.0517]
[1643807571924,0.41009179,38641.0,38639.0,0.0517]
[1643807572126,0.41009179,38641.0,38640.0,0.22995809]
[1643807572325,0.17575808,38641.0,38640.0,0.0517]
[1643807572723,0.17575808,38641.0,38640.0,0.05180579]
[1643807573211,0.73306377,38641.0,38640.0,0.05180579]
[1643807573418,0.73652034,38641.0,38640.0,0.05180579]
[1643807573609,0.52385108,38641.0,38640.0,0.05180579]
[1643807573809,0.52385108,38641.0,38640.0,0.0517]
[1643807573810,0.17575808,38641.0,38640.0,0.0517]
[1643807574210,0.00147826,38642.0,38640.0,0.0517]
[1643807574411,0.00147826,38642.0,38640.0,0.05180579]
[1643807574609,0.21949058,38650.0,38640.0,0.05180579]
[1643807574809,0.00147826,38643.0,38640.0,0.05180579]
[1643807575212,0.00147826,38643.0,38641.0,0.28678655]
[1643807575415,0.01,38650.0,38644.0,0.3349539]
[1643807575616,0.01,38650.0,38645.0,0.0517]
[1643807576019,0.01,38650.0,38645.0,0.10180579]
[1643807576215,0.01,38650.0,38645.0,0.37598337]
[1643807576415,0.01,38650.0,38645.0,0.16649279]
[1643807576627,0.01,38650.0,38645.0,0.23118379]
[1643807576928,0.01,38650.0,38646.0,0.013136]
[1643807577126,0.01,38650.0,38647.0,0.0517]
[1643807577327,0.01,38650.0,38648.0,0.27414266]
[1643807577526,0.01,38650.0,38649.0,1.02019074]
[1643807577728,0.03328826,38666.0,38656.0,0.22171042]
[1643807577934,0.03328826,38666.0,38657.0,0.26119058]
[1643807578130,0.17569988,38671.0,38657.0,0.26119058]
[1643807578328,0.58571791,38674.0,38657.0,0.10180579]
[1643807578329,0.03328826,38665.0,38657.0,0.10180579]
[1643807578927,0.03328826,38672.0,38657.0,0.10180579]
[1643807579128,0.22838447,38671.0,38658.0,0.20949058]
[1643807579329,0.22838447,38671.0,38660.0,0.064668]
[1643807579631,0.03328826,38664.0,38662.0,0.23331704]
[1643807579829,0.03328826,38664.0,38663.0,0.0517]
[1643807580231,0.348093,38664.0,38663.0,0.0517]
[1643807580478,0.22838447,38671.0,38663.0,0.0517]
[1643807580678,0.00146107,38665.0,38663.0,0.0517]
[1643807580978,0.38138126,38664.0,38663.0,0.0517]
[1643807581381,0.00146107,38665.0,38663.0,0.0517]
[1643807581777,0.22838447,38671.0,38663.0,0.0517]
[1643807581978,0.00146107,38666.0,38663.0,0.0517]
[1643807582178,0.348093,38665.0,38663.0,0.0517]
[1643807582377,0.00146107,38666.0,38663.0,0.0517]
[1643807582579,0.348093,38665.0,38663.0,0.0517]
[1643807582777,0.00146107,38666.0,38663.0,0.0517]
[1643807582980,0.348093,38665.0,38663.0,0.0517]
[1643807583378,0.03474933,38666.0,38663.0,0.0517]
[1643807584222,0.03328826,38666.0,38663.0,0.0517]
[1643807584423,0.00146107,38666.0,38663.0,0.0517]
[1643807584625,0.348093,38665.0,38663.0,0.0517]
[1643807585624,0.38138126,38665.0,38663.0,0.0517]
[1643807585824,0.348093,38664.0,38663.0,0.0517]
[1643807586428,0.03328826,38665.0,38664.0,0.08]
[1643807586625,0.03328826,38665.0,38664.0,0.1317]
[1643807586626,0.38138126,38665.0,38664.0,0.1317]
[1643807586829,0.38138126,38665.0,38661.0,0.05]
[1643807586833,0.45,38664.0,38661.0,0.05]
[1643807587027,0.348093,38663.0,38661.0,0.1017]
[1643807587226,0.45,38664.0,38661.0,0.1017]
[1643807587430,0.48328826,38664.0,38661.0,0.1017]
[1643807587628,0.03328826,38664.0,38661.0,0.1017]
[1643807587889,0.03474933,38664.0,38661.0,0.1017]
[1643807588881,0.03328826,38664.0,38661.0,0.1017]
[1643807589083,0.03474933,38664.0,38661.0,0.1017]
[1643807589881,0.03328826,38662.0,38661.0,0.1017]
[1643807590286,0.00146107,38664.0,38663.0,0.96671174]
[1643807590582,0.35146107,38664.0,38663.0,0.96660174]
[1643807591382,0.35,38664.0,38663.0,0.96660174]